bitfinex/quotes_ETHUSD_20241204
["timestamp","ask_amount","ask_price","bid_price","bid_amount"]
[1733303951622,0.65307844,3721.1,3721.0,4.141357]
[1733303951909,0.65307844,3721.1,3721.0,3.52054]
[1733303952878,0.41870873,3721.8,3721.4,2.6871]
[1733303953095,0.41870873,3722.4,3722.2,2.68658]
[1733303953418,0.56957607,3722.3,3722.2,2.68658]
[1733303953823,0.40154763,3722.3,3722.2,2.68658]
[1733303955506,0.40154763,3722.3,3721.8,2.68683]
[1733303955507,0.40154763,3722.3,3721.5,0.7864]
[1733303955833,0.40154763,3722.2,3721.5,0.7864]
[1733303956043,0.40154763,3722.1,3721.7,2.68688]
[1733303956337,0.40154763,3722.0,3721.9,2.68679]
[1733303957032,0.16802844,3722.5,3722.3,2.68648]
[1733303957205,0.40120568,3722.4,3721.6,2.68695]
[1733303957406,0.40120568,3722.3,3721.6,3.48145]
[1733303957598,0.40120568,3722.2,3722.1,2.68665]
[1733303958857,0.16802844,3722.7,3721.6,0.7945]
[1733303959008,0.40105725,3722.6,3722.4,2.68637]
[1733303959212,1.11969939,3723.0,3721.6,0.8541351]
[1733303959213,0.16802844,3723.0,3721.6,0.8541351]
[1733303959549,0.40094258,3722.9,3722.8,2.68615]
[1733303960008,0.4009249,3723.2,3722.8,2.68615]
[1733303960196,0.4009249,3723.1,3722.8,2.68615]
[1733303960394,3.22373028,3723.6,3722.8,2.68615]
[1733303960612,1.32906269,3723.5,3722.8,2.68615]
[1733303960852,0.75849911,3723.4,3722.8,2.68615]
[1733303961060,0.40076666,3723.3,3722.8,2.68615]
[1733303961224,0.35773245,3723.4,3722.8,2.68615]
[1733303961225,0.40076666,3723.2,3722.8,2.68615]
[1733303961413,0.40076666,3723.1,3722.8,2.68615]
[1733303961614,0.40076666,3723.3,3722.8,2.68615]
[1733303961814,0.40076666,3723.2,3722.8,2.68615]
[1733303962052,0.40076666,3723.1,3722.8,2.68615]
[1733303962362,0.40078503,3723.0,3722.6,2.68626]
[1733303962562,0.56878659,3723.5,3721.8,0.7676]
[1733303962763,2.68581,3723.3,3721.9,2.68679]
[1733303962916,0.40079366,3723.2,3722.3,2.68649]
[1733303963132,0.40079366,3723.1,3722.3,2.68649]
[1733303963327,0.40079366,3723.0,3722.1,2.68663]
[1733303963555,0.40079366,3722.9,3721.8,0.7676]
[1733303963864,0.40079366,3722.8,3721.9,2.68677]
[1733303964062,0.40079366,3722.7,3721.9,2.68677]
[1733303964296,0.40079366,3722.6,3721.9,2.68677]
[1733303964438,2.68611,3722.9,3721.9,2.68677]
[1733303964775,0.56879522,3723.1,3722.0,2.68671]
[1733303964776,0.72628418,3722.8,3722.0,2.68671]
[1733303964926,0.6513854,3722.7,3722.0,2.68671]
[1733303965126,0.6513854,3722.6,3722.0,2.68671]
[1733303965365,0.6513854,3722.5,3722.0,2.68671]
[1733303965568,0.25059174,3722.4,3721.6,0.0596351]
[1733303965769,0.25059174,3722.3,3721.7,2.68688]
[1733303965927,0.25059174,3722.2,3721.6,2.7466351]
[1733303966273,0.25059174,3722.1,3721.7,2.68693]
[1733303966471,0.25064275,3722.0,3721.7,2.68693]
[1733303966632,0.40079366,3722.6,3721.7,2.68693]
[1733303966827,0.65143635,3722.5,3721.9,2.68679]
[1733303967028,0.65143635,3722.4,3721.6,0.0596351]
[1733303967224,0.25064269,3722.3,3721.8,2.68686]
[1733303967427,0.36725696,3722.6,3721.6,0.0596351]
[1733303967428,0.25064269,3722.2,3721.6,0.0596351]
[1733303967668,0.25064269,3722.1,3721.9,2.68676]
[1733303967881,0.40079366,3722.8,3721.9,2.68676]
[1733303968118,1.00189564,3722.7,3721.9,2.68676]
[1733303968283,0.65145983,3722.6,3721.9,2.68676]
[1733303968485,0.65145983,3722.5,3721.9,2.68676]
[1733303968715,0.35043581,3722.7,3721.9,2.68676]
[1733303968716,0.65145983,3722.4,3721.9,2.68676]
[1733303969009,0.65180682,3722.3,3721.9,2.68676]
[1733303969209,0.25066617,3722.2,3721.9,2.68676]
[1733303969383,0.25066617,3722.1,3721.9,2.68676]
[1733303969585,0.25066617,3722.0,3721.9,2.68676]
[1733303969806,0.40114065,3722.3,3721.9,2.68676]
[1733303969985,0.25076644,3722.2,3722.0,2.68672]
[1733303970192,0.25076644,3722.1,3722.0,2.68672]
[1733303970412,0.25076644,3722.1,3721.6,0.59181627]
[1733303970580,0.25078294,3722.0,3721.7,2.68694]
[1733303970783,2.68624,3722.7,3721.7,2.68694]
[1733303970982,0.97921901,3722.6,3721.7,2.68694]
[1733303971209,0.65204641,3722.5,3721.8,2.68685]
[1733303971511,0.65204641,3722.4,3721.6,0.0596351]
[1733303971713,0.65204641,3722.3,3721.8,2.68682]
[1733303971921,0.25078708,3722.2,3721.8,2.68682]
[1733303972071,0.25078708,3722.1,3721.8,2.68683]
[1733303972272,0.16800156,3722.8,3721.9,2.68679]
[1733303972273,0.25078708,3722.0,3721.9,2.68679]
[1733303972524,0.16800156,3723.1,3722.0,0.8209]
[1733303972669,0.16800156,3723.1,3723.0,2.686]
[1733303972670,0.401395,3723.1,3723.0,2.686]
[1733303972869,0.40137563,3723.5,3723.1,2.68589]
[1733303973117,0.40137563,3723.4,3723.1,2.68589]
[1733303973282,0.40137563,3723.3,3723.1,2.68589]
[1733303973609,0.4181198,3723.9,3722.9,2.686]
[1733303973796,0.71162543,3723.8,3722.9,2.686]
[1733303974001,0.40128445,3723.7,3722.7,0.8209]
[1733303974203,0.40128445,3723.6,3723.0,2.68599]
[1733303974372,0.40128445,3723.5,3723.0,2.68599]
[1733303974575,0.40128445,3723.4,3723.0,2.68599]
[1733303974806,0.31034098,3723.8,3722.7,0.8209]
[1733303974807,0.31034098,3723.8,3723.1,2.68592]
[1733303975112,0.40129842,3723.7,3722.8,2.68615]
[1733303975414,0.40129842,3723.6,3723.1,2.68586]
[1733303975709,0.40129842,3723.5,3723.1,2.68586]
[1733303975918,0.40129842,3723.4,3723.1,2.68586]
[1733303976085,0.40129842,3723.7,3723.1,2.68586]
[1733303976273,0.40129842,3723.6,3723.1,2.68586]
[1733303976469,0.40129842,3723.5,3722.8,2.68615]
[1733303976673,1.66220584,3724.4,3722.9,0.02685995]
[1733303976900,0.81930785,3724.3,3723.4,2.68567]
[1733303977098,0.40129364,3724.2,3723.4,2.68567]
[1733303977307,0.40129364,3724.1,3723.5,2.68561]
[1733303977612,0.40129364,3724.0,3723.4,2.6857]
[1733303977785,0.40129364,3723.9,3723.7,2.68547]
[1733303977985,0.40129364,3724.2,3724.0,2.68527]
[1733303978187,0.40129364,3724.5,3724.0,2.68527]
[1733303978495,0.40129364,3724.4,3724.0,2.68527]
[1733303978683,0.40129364,3724.3,3724.0,2.68527]
[1733303978885,0.41801421,3724.8,3724.5,2.68489]
[1733303979117,0.40096531,3724.7,3724.5,2.68489]
[1733303979356,0.40096531,3725.0,3724.6,2.68485]
[1733303979526,0.02366102,3725.6,3725.1,2.68445]
[1733303979812,0.40065162,3725.5,3724.3,2.68506]
[1733303980013,0.40065162,3725.4,3725.3,2.68434]
[1733303980225,0.02366102,3725.6,3724.8,0.7846]
[1733303980377,0.02366102,3725.6,3725.1,2.68449]
[1733303980717,0.42431264,3725.6,3725.1,2.68449]
[1733303980906,0.02366102,3725.6,3725.1,2.68449]
[1733303981214,0.02366102,3725.6,3725.0,2.68454]
[1733303981589,0.02366102,3725.6,3724.8,0.7846]
[1733303981900,0.02366102,3725.6,3725.0,2.68455]
[1733303982612,0.02366102,3725.6,3724.8,0.7846]
[1733303982814,0.02366102,3725.6,3725.0,2.68451]
[1733303983019,0.02366102,3725.6,3724.8,1.859199]
[1733303983269,0.02366102,3725.6,3725.0,2.68456]
[1733303983490,0.02366102,3725.6,3725.0,2.68453]
[1733303983631,0.02366102,3725.6,3724.9,2.6846]
[1733303983830,0.02366102,3725.6,3724.8,1.859199]
[1733303984243,2.70780102,3725.6,3724.8,1.074599]
[1733303984442,0.52032488,3725.5,3724.8,1.074599]
[1733303984646,0.24954478,3725.4,3724.5,2.6849]
[1733303984880,0.24954478,3725.3,3724.5,1.074693]
[1733303985031,0.02366102,3725.6,3724.9,2.68463]
[1733303985032,0.24954478,3725.2,3724.9,2.68463]
[1733303985380,0.24944717,3725.5,3724.7,2.68477]
[1733303985671,0.24944717,3725.4,3724.7,2.68477]
[1733303985856,0.24944717,3725.4,3724.5,1.074693]
[1733303985857,0.24944717,3725.3,3724.5,1.074693]
[1733303986067,0.24944717,3725.2,3724.0,0.8326]
[1733303986232,0.24944717,3725.1,3724.3,0.423085]
[1733303986431,0.24944717,3725.0,3724.8,2.68464]
[1733303986669,0.02366102,3725.6,3724.3,0.423085]
[1733303986670,0.24943694,3725.3,3724.7,2.68472]
[1733303986883,0.02366102,3725.6,3724.7,2.68472]
[1733303987103,0.24942573,3725.5,3724.7,0.772]
[1733303987278,0.02366102,3725.6,3724.8,0.7535]
[1733303987474,0.02366102,3725.6,3724.7,3.0]
[1733303987475,0.02366102,3725.6,3724.9,0.67067148]
[1733303987647,0.02366102,3725.6,3725.5,3.4377]
[1733303988890,0.02366102,3725.6,3725.5,6.4377]
[1733303989383,0.24934717,3726.5,3725.8,2.68391]
[1733303989590,0.24934717,3726.8,3725.8,2.68391]
[1733303989753,0.54260189,3726.7,3725.8,2.68391]
[1733303989948,0.24934717,3726.6,3725.7,3.0]
[1733303990149,0.24934717,3726.5,3725.7,3.0]
[1733303990390,2.93295717,3726.4,3725.2,3.49965]
[1733303990547,2.93296717,3726.3,3725.2,3.49965]
[1733303990745,0.54264389,3726.2,3725.0,2.68455]
[1733303990949,0.54264389,3726.2,3724.9,1.459129]
[1733303990950,2.68387,3726.0,3724.9,0.8153]
[1733303991261,2.93279957,3725.9,3724.7,2.68476]
[1733303991475,2.68393,3725.9,3724.8,2.6847]
[1733303991683,2.93289509,3725.8,3724.6,3.50014]
[1733303991894,2.93293509,3725.7,3724.6,3.50014]
[1733303992063,0.2488839,3725.6,3724.6,0.8153]
[1733303992271,3.0983705,3726.5,3725.0,2.68454]
[1733303992272,0.24886064,3725.9,3725.0,2.68454]
[1733303992595,0.55,3726.1,3724.6,0.02684565]
[1733303992759,2.68422,3725.5,3723.8,2.68539]
[1733303992959,2.68437,3725.3,3723.8,2.68542]
[1733303993161,0.54223007,3725.2,3723.9,0.724116]
[1733303993374,0.24890701,3725.1,3724.1,2.68514]
[1733303993558,0.24890701,3725.1,3723.6,2.4195459]
[1733303993559,0.24890701,3725.1,3723.6,1.87024]
[1733303993780,2.93346701,3725.0,3723.6,1.87024]
[1733303994088,2.68472,3724.8,3723.8,2.68542]
[1733303994294,0.24890701,3724.7,3723.8,2.68542]
[1733303994512,2.68458,3725.0,3723.8,2.68542]
[1733303994809,3.24193283,3724.9,3723.8,2.68542]
[1733303995014,0.24900971,3724.8,3723.8,2.68542]
[1733303995507,0.24900971,3724.7,3723.9,3.0]
[1733303995711,2.93374971,3724.8,3723.7,3.0]
[1733303995914,0.24900971,3724.7,3723.8,3.0]
[1733303996067,0.24900971,3724.6,3723.8,3.0]
[1733303996404,0.24900971,3724.5,3723.7,2.68549]
[1733303996710,0.32420328,3724.6,3723.3,1.074901]
[1733303996711,0.24900971,3724.4,3723.3,0.8074]
[1733303996869,0.24900971,3724.5,3723.3,0.8074]
[1733303997067,2.93400971,3724.4,3723.3,0.8074]
[1733303997270,0.24900971,3724.3,3723.3,3.49318]
[1733303997468,2.68467,3724.9,3723.3,3.49318]
[1733303997469,0.24935039,3724.2,3723.4,2.68569]
[1733303997718,0.24935039,3724.6,3723.4,3.034999]
[1733303997879,2.68499,3724.4,3723.5,3.0]
[1733303998205,0.24935113,3724.3,3723.4,0.349309]
[1733303998366,0.24935113,3724.2,3723.4,0.349309]
[1733303998566,0.24935113,3724.1,3723.3,6.49315]
[1733303998767,2.68507,3724.3,3723.3,6.49315]
[1733303998980,0.2494688,3724.2,3723.3,6.49315]
[1733303999179,2.68499,3724.4,3723.3,5.68575]
[1733303999515,0.24950422,3724.3,3723.3,5.68575]
[1733303999720,0.24950422,3724.2,3723.3,5.68575]
[1733303999927,0.39936154,3724.7,3723.6,3.7571]
[1733304000065,0.39936154,3724.7,3724.5,2.68491]
[1733304000066,0.24958754,3724.6,3724.5,2.68491]
[1733304000270,0.24958754,3724.6,3724.5,3.44201]
[1733304000687,0.24958754,3724.6,3724.5,6.44201]
[1733304000885,0.24958754,3724.9,3724.5,1.66981]
[1733304001216,0.24958754,3725.3,3724.5,1.66981]
[1733304001419,0.24978938,3725.2,3724.5,0.7571]
[1733304001600,0.24978938,3725.1,3724.3,5.685]
[1733304001784,0.24978938,3725.0,3724.3,3.0]
[1733304001986,3.08335154,3725.8,3724.7,2.68477]
[1733304002318,0.6495333,3725.7,3725.0,2.68452]
[1733304002627,0.6495333,3725.6,3725.1,0.8231]
[1733304002786,0.2498205,3725.5,3725.4,2.68427]
[1733304003134,0.3997128,3725.9,3724.4,0.8231]
[1733304003417,0.54517849,3726.6,3724.4,0.8231]
[1733304003418,0.64970872,3725.8,3724.7,2.68471]
[1733304003566,0.64970872,3725.7,3724.4,0.8231]
[1733304003771,0.64970872,3725.6,3724.7,2.68477]
[1733304003971,0.64970872,3725.5,3725.3,3.0]
[1733304004223,0.24999592,3725.4,3724.9,2.68461]
[1733304004441,0.24999592,3725.3,3724.9,2.68461]
[1733304004592,0.24999592,3725.2,3724.9,0.8141]
[1733304004789,0.40031298,3725.8,3725.2,3.0]
[1733304005128,0.65049774,3725.7,3724.7,2.68476]
[1733304005268,0.65049774,3725.6,3724.5,0.8141]
[1733304005473,0.65081226,3725.5,3724.5,0.8141]
[1733304005755,0.65081226,3725.4,3724.5,0.8141]
[1733304005918,0.65081226,3725.3,3724.5,0.8141]
[1733304006100,0.65081226,3725.2,3724.3,2.68506]
[1733304006278,0.65081226,3725.1,3724.5,2.68489]
[1733304006481,0.25031241,3725.0,3724.5,2.68489]
[1733304006795,0.25031241,3724.9,3724.5,2.68489]
[1733304007001,0.25031241,3724.8,3724.6,2.68483]
[1733304007172,0.41718735,3725.6,3724.6,2.68483]
[1733304007173,0.25051933,3724.7,3724.6,2.68483]
[1733304007373,0.40077605,3725.4,3724.3,0.616262]
[1733304007717,0.65137319,3725.3,3724.3,0.616262]
[1733304007883,0.41718735,3725.6,3724.3,3.616262]
[1733304007884,0.65137319,3725.2,3724.3,3.616262]
[1733304008209,0.65137319,3725.1,3724.4,2.68499]
[1733304008414,0.25059714,3725.0,3724.7,2.68471]
[1733304008596,0.41718735,3725.7,3724.4,3.0943552]
[1733304008597,0.25059714,3724.9,3724.8,2.68466]
[1733304009534,0.25059714,3724.9,3724.6,2.68478]
[1733304009816,0.401068,3725.2,3724.4,0.4093652]
[1733304010018,0.25068996,3725.1,3725.0,2.68456]
[1733304010189,0.40109396,3726.2,3724.2,0.7924]
[1733304010379,0.65177177,3726.1,3725.0,2.68455]
[1733304010575,0.65177177,3726.0,3725.0,2.68455]
[1733304010789,0.98531995,3725.9,3725.1,2.68448]
[1733304010990,0.65177177,3725.8,3725.0,2.68453]
[1733304011301,0.65177177,3725.7,3724.6,2.68482]
[1733304011496,0.65177177,3725.6,3724.6,2.68482]
[1733304011692,0.65177177,3725.5,3724.4,3.0]
[1733304011894,0.65177177,3725.4,3724.2,0.7924]
[1733304012080,0.65177177,3725.3,3724.4,2.68499]
[1733304012285,0.65179855,3725.2,3724.6,2.68483]
[1733304012534,0.65179855,3725.1,3724.6,2.68483]
[1733304012834,0.25069175,3725.0,3724.6,2.68483]
[1733304013030,0.25069175,3724.9,3724.6,2.68483]
[1733304013186,0.25069175,3724.8,3724.6,2.68483]
[1733304013420,0.25069175,3724.7,3724.6,2.68483]
[1733304014858,0.25069175,3724.7,3724.3,0.647756]
[1733304015061,0.25069175,3724.6,3724.2,2.68511]
[1733304015359,0.25070557,3724.5,3724.2,2.68511]
[1733304015573,2.68443,3725.2,3724.2,2.68511]
[1733304015738,2.68443,3725.2,3723.8,0.7934]
[1733304016061,1.06968958,3725.1,3723.7,3.0]
[1733304016260,2.68464,3724.9,3724.0,3.0]
[1733304016565,0.65185547,3724.8,3724.0,3.0]
[1733304016863,0.65185547,3724.7,3723.7,0.38232]
[1733304017090,0.65185547,3724.6,3723.9,5.68529]
[1733304017261,0.65185547,3724.5,3723.1,0.54891216]
[1733304017464,3.33684547,3724.4,3723.3,2.68575]
[1733304017656,0.65185547,3724.3,3723.1,0.24407962]
[1733304017859,0.65185547,3724.2,3723.4,2.68571]
[1733304018206,0.65185547,3724.1,3723.2,0.751]
[1733304018499,0.25071364,3724.0,3723.2,0.0268557]
[1733304018654,0.40114183,3724.4,3723.2,2.68586]
[1733304018854,0.65184334,3724.3,3723.3,2.68577]
[1733304019182,1.02731609,3724.2,3723.3,2.66210898]
[1733304019352,0.65184334,3724.1,3723.3,2.66210898]
[1733304019557,0.65184334,3724.0,3723.3,2.66210898]
[1733304019752,0.65184334,3723.9,3723.4,2.68571]
[1733304019981,0.65184334,3723.8,3723.6,2.68556]
[1733304020295,5.19619618,3724.6,3723.6,2.68556]
[1733304020296,0.25070151,3723.7,3723.6,2.68556]
[1733304022515,0.25070151,3723.7,3723.6,3.781916]
[1733304022801,0.40110499,3724.7,3724.2,6.51294]
[1733304022985,0.4010697,3725.2,3724.2,0.8278]
[1733304023169,0.4010697,3725.7,3725.1,2.68442]
[1733304023500,0.65170437,3725.6,3725.1,2.68443]
[1733304023797,0.65170437,3725.5,3725.1,2.68443]
[1733304024002,0.25063467,3725.4,3725.1,2.68443]
[1733304024308,0.25063467,3725.3,3725.1,2.68443]
[1733304024490,0.25063467,3725.2,3725.1,2.68443]
[1733304024887,0.25061775,3725.2,3725.1,2.68443]
[1733304025803,1.11969939,3725.9,3725.1,2.68443]
[1733304026002,3.30253709,3725.8,3725.1,2.68443]
[1733304026160,1.57988631,3725.7,3725.1,2.68443]
[1733304026360,0.65160799,3725.6,3725.1,2.68443]
[1733304026562,0.25061846,3725.5,3725.1,2.68443]
[1733304026828,0.25061846,3725.4,3725.1,2.68443]
[1733304027128,0.65160799,3725.3,3725.1,2.68443]
[1733304027280,1.02065696,3725.8,3724.6,0.7693]
[1733304027281,0.65160799,3725.2,3724.6,0.7693]
[1733304027461,0.25061846,3725.1,3723.7,0.8326]
[1733304027665,0.65167706,3725.0,3724.2,2.68508]
[1733304027888,0.65167706,3724.9,3724.2,2.68508]
[1733304028093,0.65167706,3724.8,3724.2,2.68508]
[1733304028280,0.65167706,3724.7,3724.2,2.68508]
[1733304028477,0.65167706,3724.6,3723.5,2.68559]
[1733304028676,0.65167706,3724.5,3723.9,2.68529]
[1733304029008,0.65180185,3724.4,3723.9,2.68529]
[1733304029181,0.65180185,3724.3,3723.9,2.68529]
[1733304029380,0.25076567,3724.2,3723.9,2.68529]
[1733304029583,0.25076567,3724.1,3723.9,2.68529]
[1733304029911,0.40122649,3724.6,3723.9,2.68529]
[1733304030077,0.6519924,3724.5,3723.6,3.0]
[1733304030266,0.6519924,3724.4,3723.9,2.68531]
[1733304030463,0.6519924,3724.3,3723.9,2.68531]
[1733304030689,0.6519924,3724.3,3723.6,3.0]
[1733304030690,0.25076591,3724.2,3724.0,2.68526]
[1733304030905,0.25076591,3724.1,3724.0,2.68526]
[1733304031469,0.25076591,3724.1,3723.8,2.68541]
[1733304031711,0.25076591,3724.0,3723.8,2.68541]
[1733304031919,0.16794377,3724.8,3723.6,3.0]
[1733304032248,1.23025066,3724.7,3723.9,2.68534]
[1733304032442,0.65195822,3724.6,3723.9,2.68534]
[1733304032736,0.57829244,3724.7,3723.3,0.8295]
[1733304032737,0.65195822,3724.5,3723.3,0.8295]
[1733304033034,0.65195822,3724.4,3723.4,2.68571]
[1733304033241,0.65195822,3724.3,3723.4,2.68571]
[1733304033383,1.0442407,3724.2,3723.4,2.68571]
[1733304033582,0.65195822,3724.1,3723.4,2.68571]
[1733304033822,0.65195822,3724.0,3723.3,2.68577]
[1733304034018,0.65195822,3723.9,3723.0,2.686]
[1733304034227,0.65195822,3723.9,3723.3,2.68572]
[1733304034428,0.39228248,3724.2,3722.9,0.7794]
[1733304034633,0.65201186,3723.8,3723.6,2.68556]
[1733304034921,0.25077379,3723.7,3723.6,2.68557]
[1733304035096,0.16797017,3724.6,3723.9,2.68532]
[1733304035310,0.6519654,3724.5,3724.0,2.68528]
[1733304035587,1.97103875,3724.7,3723.0,0.37794]
[1733304035588,0.6519654,3724.4,3724.1,2.68514]
[1733304035789,0.25075592,3724.3,3724.1,2.68514]
[1733304036028,0.25075592,3724.2,3724.1,2.68514]
[1733304036233,0.25074972,3724.2,3724.1,2.68514]
[1733304037838,0.25074972,3724.2,3723.4,3.0]
[1733304038019,0.25074972,3724.1,3723.9,2.68533]
[1733304038223,0.40120111,3724.5,3723.9,2.68533]
[1733304038404,0.65196728,3724.4,3723.9,2.68531]
[1733304038727,0.25076617,3724.3,3723.9,2.68531]
[1733304039026,0.25076617,3724.2,3723.9,2.68531]
[1733304039236,0.25076617,3724.1,3723.9,2.68531]
[1733304039414,0.40122602,3724.5,3723.6,3.0]
[1733304039614,0.65200935,3724.4,3724.0,2.68522]
[1733304039943,0.25078333,3724.3,3724.1,2.6852]
[1733304040239,1.11969939,3724.9,3724.0,0.8148]
[1733304040389,0.41928402,3724.8,3724.3,2.68505]
[1733304040595,0.25082662,3724.7,3724.3,2.68505]
[1733304040800,0.25082662,3724.6,3724.4,2.68499]
[1733304041007,0.65213855,3724.5,3724.4,2.68499]
[1733304042547,0.65213855,3724.5,3724.2,2.68512]
[1733304042749,0.65213855,3724.4,3723.0,0.8047]
[1733304042952,2.68522,3724.1,3723.1,2.6859]
[1733304043115,0.65213855,3724.0,3723.1,2.6859]
[1733304043486,0.65213855,3723.9,3723.1,2.6859]
[1733304043660,0.65213855,3723.8,3722.7,0.8047]
[1733304043941,0.65213855,3723.7,3723.3,2.68573]
[1733304044239,0.25082662,3723.6,3723.4,2.6857]
[1733304044442,0.25082662,3723.5,3722.7,0.8047]
[1733304044600,0.56949709,3724.1,3723.2,2.68585]
[1733304044800,0.65254411,3724.0,3722.7,0.8047]
[1733304044998,0.93947389,3723.9,3723.3,2.68572]
[1733304045238,0.65254411,3723.8,3723.4,2.68569]
[1733304045410,0.1679318,3724.2,3723.7,2.6855]
[1733304045614,1.67954909,3724.6,3723.8,2.68541]
[1733304045615,0.65251036,3724.1,3723.8,2.68541]
[1733304045846,0.25096552,3724.0,3723.8,2.68541]
[1733304046002,0.65248177,3723.9,3723.8,2.68541]
[1733304046425,0.65247106,3723.9,3723.8,2.68541]
[1733304047051,0.65247106,3723.9,3723.3,2.68573]
[1733304047253,0.65247106,3723.8,3723.6,2.6855]
[1733304047454,0.25096552,3723.7,3723.2,0.7713]
[1733304047640,0.65250567,3723.6,3723.4,2.6857]
[1733304047955,0.25096552,3723.5,3723.0,3.0]
[1733304048118,0.25096552,3723.4,3723.3,2.68578]
[1733304051960,0.25096552,3723.4,3722.6,1.074984]
[1733304052161,0.65255821,3723.3,3722.5,0.7634]
[1733304052322,0.65255821,3723.2,3722.3,1.075283]
[1733304052629,0.65255821,3723.1,3721.7,0.7634]
[1733304052829,0.65255821,3723.0,3721.8,2.68687]
[1733304053157,1.53773265,3723.4,3722.1,0.652558]
[1733304053158,0.65255821,3722.9,3722.1,0.652558]
[1733304053321,0.65245576,3722.8,3722.4,2.68637]
[1733304053545,0.65245576,3722.7,3722.4,2.68637]
[1733304053784,0.25094452,3722.6,3722.4,2.68637]
[1733304054089,0.25094452,3722.5,3722.4,2.68637]
[1733304056405,0.5694978,3723.1,3722.6,2.68625]
[1733304056597,0.65242389,3723.0,3722.6,2.68625]
[1733304056889,0.65243095,3722.9,3722.1,0.41824]
[1733304057097,0.41822497,3723.4,3722.3,2.6865]
[1733304057098,0.65243095,3722.8,3722.3,2.6865]
[1733304057302,0.65243095,3722.7,3722.0,2.68668]
[1733304057591,0.65243095,3722.6,3722.1,2.68664]
[1733304057751,0.65243095,3722.6,3720.8,2.95607]
[1733304057752,0.82045173,3722.5,3721.3,0.7794]
[1733304057951,1.67954909,3723.2,3721.3,0.7794]
[1733304057952,0.65243095,3722.4,3722.2,2.68652]
[1733304058197,0.25093498,3722.3,3722.2,2.68652]
[1733304058701,0.4014356,3722.9,3722.8,2.68608]
[1733304058858,0.65232584,3722.9,3722.8,2.68608]
[1733304059057,0.65232448,3722.9,3722.8,2.68608]
[1733304061989,0.25089024,3722.9,3722.8,2.68608]
[1733304062164,0.65223751,3722.9,3722.8,2.68608]
[1733304062365,0.65218761,3722.9,3722.3,0.55]
[1733304062653,0.25084139,3722.8,3722.7,2.68619]
[1733304062864,0.65220376,3722.8,3722.0,0.7794]
[1733304063072,0.65220376,3722.7,3721.7,0.7838]
[1733304063269,0.65220376,3722.6,3722.0,2.68671]
[1733304063457,0.65220376,3722.5,3721.7,0.7838]
[1733304063686,0.25084139,3722.4,3721.9,2.68674]
[1733304063892,0.65216855,3722.3,3721.4,2.68716]
[1733304064074,0.16800415,3722.7,3721.4,2.68716]
[1733304064075,0.65216855,3722.2,3721.4,2.68716]
[1733304064395,2.68644,3722.4,3721.4,2.68716]
[1733304064396,0.58470225,3722.1,3721.4,2.68716]
[1733304064601,3.33879875,3722.0,3720.9,2.68751]
[1733304064807,0.65205875,3721.9,3721.0,1.075669]
[1733304064968,0.65205875,3721.8,3720.9,2.68746]
[1733304065166,0.65205875,3721.7,3720.9,2.68746]
[1733304065507,1.00274504,3721.6,3720.9,2.68746]
[1733304065700,0.65205875,3721.5,3720.9,2.68746]
[1733304066029,0.65205875,3721.4,3720.4,4.825954]
[1733304066171,0.25084139,3721.3,3720.7,2.6876]
[1733304066360,0.25084139,3721.2,3720.7,2.6876]
[1733304066562,0.40121736,3721.5,3720.7,2.6876]
[1733304066759,0.40121736,3721.5,3720.4,4.075854]
[1733304066760,0.65158759,3721.4,3720.8,2.68759]
[1733304067004,0.25037023,3721.3,3720.8,2.68759]
[1733304067310,0.25037023,3721.2,3720.9,2.68751]
[1733304067467,0.40121736,3721.8,3720.9,2.68751]
[1733304067669,0.96024985,3721.7,3720.9,2.68751]
[1733304067865,0.65144611,3721.6,3720.5,2.68781]
[1733304068111,0.65144611,3721.5,3720.5,0.55]
[1733304068269,0.25022875,3721.4,3721.3,6.48093]
[1733304068613,1.11969939,3722.8,3721.9,2.68679]
[1733304068614,0.40121736,3722.4,3721.9,2.68679]
[1733304068815,0.65130415,3722.3,3722.2,2.68658]
[1733304069040,0.25008679,3722.3,3722.2,2.68658]
[1733304069309,0.40009839,3723.0,3722.4,2.68643]
[1733304069517,0.65018143,3722.9,3722.5,2.68636]
[1733304069683,0.25008304,3722.8,3722.7,2.68615]
[1733304069889,0.40009839,3723.4,3722.7,2.68615]
[1733304070092,0.2500338,3723.3,3722.6,2.68627]
[1733304070295,0.2500338,3723.2,3722.8,2.68614]
[1733304070491,0.2500338,3723.1,3722.8,2.68614]
[1733304070806,0.40009839,3723.4,3722.9,2.68607]
[1733304070992,0.25008396,3723.3,3722.9,2.68607]
[1733304071198,0.25008396,3723.2,3722.9,2.68607]
[1733304071509,0.25008396,3723.1,3723.0,2.686]
[1733304072485,0.25008396,3723.1,3722.8,2.68613]
[1733304072678,0.40009839,3723.6,3722.4,2.68639]
[1733304072874,0.65034825,3723.5,3722.4,2.68639]
[1733304073115,0.65034825,3723.4,3722.8,2.68613]
[1733304073422,0.650688,3723.3,3722.8,2.68613]
[1733304073602,0.25024986,3723.2,3722.8,2.68613]
[1733304073807,0.25024986,3723.1,3722.8,2.68613]
[1733304073975,0.25024986,3723.0,3722.8,2.68613]
[1733304074174,0.25031212,3722.9,3722.7,2.6862]
[1733304074423,0.40045142,3723.4,3722.7,2.6862]
[1733304074728,0.65076747,3723.3,3722.9,2.68605]
[1733304074883,0.25031605,3723.2,3722.9,2.68605]
[1733304075083,0.25031605,3723.1,3722.9,2.68605]
[1733304075280,0.25031605,3723.0,3722.9,2.68605]
[1733304075609,0.25033638,3723.0,3722.4,0.55]
[1733304075780,0.40054233,3723.5,3722.8,2.6861]
[1733304075983,0.65088128,3723.4,3722.9,2.68606]
[1733304076219,0.65088128,3723.3,3722.8,2.68612]
[1733304076415,0.65088128,3723.2,3722.8,2.68612]
[1733304076621,0.16799523,3723.7,3722.6,2.68628]
[1733304076622,0.25033895,3723.1,3722.6,2.68628]
[1733304076820,0.25033895,3723.0,3722.1,0.7946]
[1733304076990,0.25033895,3722.9,3722.7,2.68621]
[1733304077192,0.40064532,3723.3,3722.7,2.68621]
[1733304077392,0.65112443,3723.2,3722.7,2.68621]
[1733304077721,0.65112443,3723.1,3722.1,0.7946]
[1733304077921,0.65112443,3723.0,3722.3,2.68646]
[1733304078124,0.65112443,3722.9,3722.3,2.68646]